Cogmind - Beta 15 @@@ ROGUE MODE // 2025.06.05 @ 19:33:13 Player: SK CalmBar Result: Destroyed by G-47 Trooper with Particle Gun Performance ------------- Evolutions (2) 1000 Regions Visited (3) 600 Robots Destroyed (47) 235 Value Destroyed (1124) 1124 Prototype IDs (2) 40 Alien Tech Used (0) 0 Bonus (0) 0 TOTAL SCORE: 2999 Bonus ------- None Cogmind --------- Core Integrity 0/550 Matter 400/400 Energy 100/100 System Corruption 8% Temperature Cool (9) Movement Core (400) Ox7 Location -8/Materials Parts ------- > --- POWER (1) -------- (None) > --- PROPULSION (4) --- (None) > --- UTILITY (4) ------ Large Storage Unit Medium Matter Pod Improved Targeting Computer > --- WEAPON (2) ------- (None) > --- INVENTORY (15) --- Heat Sink Heat Sink Large Storage Unit Large Matter Pod (150) Improved Targeting Computer Peak State ------------ > --- POWER ------------ Ion Engine > --- PROPULSION ------- Hover Unit Hover Unit Hover Unit Improved Hover Unit > --- UTILITY ---------- Large Storage Unit Visual Processing Unit Sensor Array Improved Targeting Computer > --- WEAPON ----------- Spread Laser Spread Laser > --- INVENTORY -------- Ion Engine Hover Unit Heat Sink Heat Sink Large Storage Unit Medium Matter Pod Medium Matter Pod Large Matter Pod Signal Interpreter Improved Targeting Computer ECM Suite Plasma Cutter [Rating: 17] Favorites ----------- Power Ion Engine Engine Ion Engine Power Core Light Nuclear Core Propulsion Aluminum Leg Treads Light Treads Leg Aluminum Leg Hover Unit Hover Unit Utility Large Matter Pod Device Sensor Array Storage Large Matter Pod Processor Improved Targeting Computer Weapon Spread Laser Energy Gun Spread Laser Ballistic Gun Assault Rifle Launcher Grenade Launcher Special Weapon Plasma Cutter Impact Weapon Maul Build | -11 -10 -9 -8 ------- Run | Yrd Mat Mat Mat Slots Evolved 4 | . . 2 2 Power . | . . . . Propulsion 2 | . . 1 1 Utility 2 | . . 1 1 Weapon . | . . . . Parts Attached 36 | 4 15 7 10 Power 5 | 1 2 . 2 Engine 4 | 1 2 . 1 Core 1 | . . . 1 Reactor . | . . . . Propulsion 9 | 2 2 4 1 Treads 2 | 2 . . . Leg 2 | . 2 . . Wheel . | . . . . Hover 5 | . . 4 1 Flight . | . . . . Utility 11 | 1 2 2 6 Device 2 | . . 1 1 Storage 5 | 1 2 . 2 Processor 4 | . . 1 3 Hackware . | . . . . Protection . | . . . . Artifact . | . . . . Weapon 11 | . 9 1 1 Energy Gun 3 | . 2 . 1 Energy Cannon . | . . . . Ballistic Gun 3 | . 3 . . Ballistic Cannon . | . . . . Launcher 3 | . 3 . . Special Weapon 1 | . . 1 . Impact Weapon 1 | . 1 . . Slashing Weapon . | . . . . Piercing Weapon . | . . . . Special Melee Weapon . | . . . . Unidentified Prototypes . | . . . . Parts Lost 24 | . 7 1 16 Power 4 | . 1 . 3 Propulsion 7 | . 2 . 5 Utility 5 | . . . 5 Weapon 8 | . 4 1 3 Highest Loss Streak 9 | . 4 1 9 To Critical Strikes . | . . . . Average Backups 10 | 5 9 13 8 Power . | . . 1 . Propulsion 2 | 2 2 1 . Utility 5 | . 5 9 7 Weapon . | 2 . . . Tool/Special . | . . . . Unused Backups 8 | . 4 . 4 Power . | . . . . Propulsion 2 | . 2 . . Utility 6 | . 2 . 4 Weapon . | . . . . Tool/Special . | . . . . Average Slot Usage (%) 93 | . 97 98 62 Engine 12 | . 13 11 5 Treads 4 | . 6 . . Leg 15 | . 20 1 . Hover 5 | . . 31 14 Device 2 | . . 10 8 Storage 24 | . 27 18 10 Processor 1 | . . 3 11 Energy Gun 8 | . 6 21 10 Ballistic Gun 8 | . 11 . . Launcher 6 | . 9 . . Peak Build Rating 17 | 4 10 14 17 Average Rating 8 | 3 7 12 10 On Entrance 6 | . 4 10 12 Naked Turns . | . . . . Heaviest Build 35 | 10 34 35 34 Greatest Support 40 | 40 40 20 25 Greatest Overweight (x) 9 | . 4 1 9 Average Overweight (x) . | . . 1 2 Largest Inventory Capacity 15 | 8 15 15 15 Average Capacity 13 | 7 12 15 15 Most Carried 15 | 8 15 15 14 Average Carried 10 | 5 9 13 8 Final Capacity 15 | 8 15 15 15 Final Carried 15 | 8 15 15 5 Class Distribution -------------------- 100% | Mutant Dominant Class ---------------- Mutant | -10/Materials Mutant | -9/Materials Mutant | -8/Materials Resources | -11 -10 -9 -8 ----------- Run | Yrd Mat Mat Mat Matter Collected 1212 | 205 830 114 63 Remotely . | . . . . Salvage Created 1106 | . 713 257 136 Parts 85 | . 64 19 2 Haulers Intercepted 1 | . 1 . . Recyclers Shooed . | . . . . Parts Field Recycled . | . . . . Retrieved Matter . | . . . . Parts Self-Destructed . | . . . . Prevented . | . . . . Kills | -11 -10 -9 -8 ------- Run | Yrd Mat Mat Mat Combat Hostiles Destroyed 35 | . 25 5 5 Guns 27 | . 18 5 4 AOE 8 | . 7 . 1 Classes Destroyed 11 | . 7 3 1 Worker 3 | . 3 . . Builder 1 | . 1 . . Hauler 1 | . 1 . . Recycler 1 | . . 1 . Mechanic 1 | . 1 . . Watcher 5 | . 3 2 . Swarmer 12 | . 12 . . Grunt 18 | . 13 3 2 Brawler 2 | . . 1 1 Sentry 2 | . . 1 1 Hunter 1 | . . . 1 Best Kill Streak 6 | . 6 3 3 Combat Bots Only 6 | . 6 3 3 Max Kills in Single Turn 3 | . 3 1 1 Gunslinging . | . . . . Exploded 3 | . 3 . 1 Melee . | . . . . Uniques/NPCs Destroyed . | . . . . Combat | -11 -10 -9 -8 -------- Run | Yrd Mat Mat Mat Hostile Shots Fired 242 | . 126 15 101 Missed 51 | . 26 3 22 Hits 191 | . 100 12 79 Projectile 191 | . 100 12 79 Critical Strikes 5 | . . . 5 Damage Taken 2739 | . 1140 298 1301 Core 930 | . 225 153 552 Absorbed by Shields . | . . . . Core Remaining (%) 57 | 100 10 61 . Volleys Fired 127 | . 94 12 21 Largest 2 | . 2 2 2 Hottest 130 | . 130 130 130 Shots Fired 178 | . 127 24 27 Gun 163 | . 112 24 27 Cannon . | . . . . Launcher 15 | . 15 . . Special . | . . . . Kinetic 80 | . 80 . . Thermal 83 | . 32 24 27 Explosive 15 | . 15 . . Electromagnetic . | . . . . Robot Hit Streak 20 | . 6 20 10 Robot Miss Streak 14 | . 14 7 4 Penetration Max . | . . . . Secondary Targets 1 | . 1 . . Max Gunslinging Chain 1 | . 1 . . Shots Hit Robots 129 | . 82 21 26 Core Hits 145 | . 70 29 46 Critical Kills 1 | . 1 . . Critical Parts Destroyed . | . . . . Critical Strikes 1 | . 1 . . Destroy 1 | . 1 . . Melee Attacks . | . . . . Impact . | . . . . Slashing . | . . . . Piercing . | . . . . Sneak Attacks . | . . . . Combat Hostiles . | . . . . Follow-up Attacks . | . . . . Damage Inflicted 2829 | . 1693 445 691 Guns 1705 | . 936 299 470 Cannons . | . . . . Explosions 1109 | . 750 146 213 Melee . | . . . . Ramming 15 | . 7 . 8 Kinetic 567 | . 567 . . Thermal 1138 | . 369 299 470 Explosive 1109 | . 750 146 213 Electromagnetic . | . . . . Impact . | . . . . Slashing . | . . . . Piercing . | . . . . Highest Corruption 8 | . 3 . 8 Average Corruption 6 | . 2 . 6 Corruption Purged . | . . . . Corruption Blocked . | . . . . Effects 7 | . . . 7 Message Errors 1 | . . . 1 Matter Fused 3 | . . . 3 Heat Flow Errors 1 | . . . 1 Parts Rejected 1 | . . . 1 Alerts 1 | . . . 1 Overload Shots . | . . . . Overflow Damage 106 | . 46 . 60 Projectiles . | . . . . Explosions 106 | . 46 . 60 Melee . | . . . . Knockbacks . | . . . . Impact . | . . . . Kinetic . | . . . . Secondary . | . . . . Self-Inflicted Damage 441 | . 147 195 99 Shots 9 | . 6 2 1 Rammed 19 | . 5 . 14 Targets Rammed 19 | . 5 . 14 Kicked . | . . . . Crushed . | . . . . Highest Temperature 389 | . 355 282 389 Average Temperature 110 | . 130 85 107 Received Heat Transfer 951 | . 366 18 567 Effects 1 | . 1 . . Energy Bleed 1 | . 1 . . Siege Activations . | . . . . Martial Activations . | . . . . Shielding Activations . | . . . . Robots Disrupted . | . . . . Combat Hostiles . | . . . . Robots Corrupted . | . . . . Combat Hostiles . | . . . . Parts Fried . | . . . . Impact Corruptions . | . . . . Robots Melted . | . . . . Combat Hostiles . | . . . . Parts Melted 1 | . . . 1 Heat Transferred 1395 | . 455 355 585 Parts Sabotaged . | . . . . Parts Stolen . | . . . . Parts Stripped . | . . . . Power Chain Reactions . | . . . . Alert | -11 -10 -9 -8 ------- Run | Yrd Mat Mat Mat Maximum Alert Level 1 | . 1 . . Low Security (%) 87 | 100 82 100 100 Level 1 12 | . 17 . . Level 2 . | . . . . Level 3 . | . . . . Level 4 . | . . . . Level 5 . | . . . . High Security . | . . . . Max Security . | . . . . Peak Influence 284 | . 284 188 101 Initial 115 | . . 115 70 Average 100 | . 108 124 48 Influence Increases 1251 | . 792 243 216 Destroy 0b10 Robot/C 700 | . 500 100 100 Destroy 0b10 Robot/NC 60 | . 45 15 . Destroy Leader 172 | . 108 34 30 Successful Hack 7 | . 7 . . Disable Machine 60 | . 15 30 15 Destroy Structure 162 | . 102 34 26 Partial Spotted 15 | . 15 . . Lose Combat Pursuer 75 | . . 30 45 Influence Decreases 1251 | . 517 350 384 Entered New Map 258 | . . 160 98 Time Decay 777 | . 447 180 150 Lost Part 216 | . 70 10 136 Squads Dispatched 7 | . 6 1 . Investigation 4 | . 3 1 . Extermination . | . . . . Reinforcement 3 | . 3 . . Assault . | . . . . Garrison . | . . . . Intercept . | . . . . Searches Triggered . | . . . . Construction Impeded . | . . . . Haulers Reinforced . | . . . . Active Scanning Responses . | . . . . Cargo Convoy Interrupts . | . . . . Stealth | -11 -10 -9 -8 --------- Run | Yrd Mat Mat Mat Distress Signals 2 | . 1 1 . Communications Jammed . | . . . . Distress Signals . | . . . . Times Spotted 59 | . 37 12 10 Peak Tracking Total 4 | . 4 4 3 Tactical Retreats 4 | . . 2 2 Traps | -11 -10 -9 -8 ------- Run | Yrd Mat Mat Mat Traps Triggered 4 | . 4 . . Indirectly . | . . . . Trap Hack Attempts . | . . . . Triggered . | . . . . Disarmed . | . . . . Reprogrammed . | . . . . Reused . | . . . . Traps Extracted . | . . . . Installed . | . . . . Triggered . | . . . . Machines | -11 -10 -9 -8 ---------- Run | Yrd Mat Mat Mat Machines Disabled 6 | . 3 2 1 Max in Single Turn 2 | . 2 2 1 Machines Repaired . | . . . . Machines Dismantled . | . . . . Machines Sabotaged . | . . . . Overloaded Fab Kills . | . . . . Hacking | -11 -10 -9 -8 --------- Run | Yrd Mat Mat Mat Machines Accessed 9 | . 7 2 . Terminals 6 | . 5 1 . Fabricators . | . . . . Repair Stations . | . . . . Recycling Units 3 | . 2 1 . Scanalyzers . | . . . . Garrison Access . | . . . . Total Hacks 28 | . 24 4 . Successful 15 | . 14 1 . Failed 12 | . 9 3 . Catastrophic 1 | . 1 . . Database Lockouts 1 | . 1 . . Manual . | . . . . Terminals 23 | . 20 3 . Fabricators . | . . . . Repair Stations . | . . . . Recycling Units 5 | . 4 1 . Scanalyzers . | . . . . Garrison Access . | . . . . Terminal Hacks 11 | . 11 . . Record 8 | . 8 . . Prototype ID Bank 1 | . 1 . . Transport Status 2 | . 2 . . Fabricator Hacks . | . . . . Repair Station Hacks . | . . . . Recycling Unit Hacks 4 | . 3 1 . Report Inventory 3 | . 2 1 . Retrieve Components 1 | . 1 . . Scanalyzer . | . . . . Garrison Access Hacks . | . . . . Unauthorized Hacks . | . . . . Terminals . | . . . . Fabricators . | . . . . Repair Stations . | . . . . Recycling Units . | . . . . Scanalyzers . | . . . . Garrison Access . | . . . . Data Cores Recovered . | . . . . Used . | . . . . Hacking Detections 7 | . 6 1 . Full Trace Events 4 | . 3 1 . Feedback Events . | . . . . Feedback Blocked . | . . . . Robot Schematics Acquired . | . . . . Robots Built . | . . . . Authchips . | . . . . Time . | . . . . Total Robot Build Rating . | . . . . Part Schematics Acquired . | . . . . Parts Built . | . . . . Authchips . | . . . . Time . | . . . . Total Part Build Rating . | . . . . Parts Repaired . | . . . . Time . | . . . . Parts Recycled . | . . . . Recycled Matter . | . . . . Retrieved Matter . | . . . . Retrieved Components 9 | . 9 . . Parts Scanalyzed . | . . . . Part Schematics Acquired . | . . . . Parts Damaged . | . . . . Bothacking | -11 -10 -9 -8 ------------ Run | Yrd Mat Mat Mat Used RIF Installer . | . . . . Robots Hacked . | . . . . Non-combat . | . . . . Combat . | . . . . Robot Hacks Applied . | . . . . Relay Couplers Released . | . . . . Fabnet Peak Effective % . | . . . . Robots Rewired . | . . . . Allies Hacked . | . . . . Hacks Repelled . | . . . . Allies | -11 -10 -9 -8 -------- Run | Yrd Mat Mat Mat Total Allies . | . . . . Largest Group . | . . . . Highest-Rated Group . | . . . . Highest-Rated Ally . | . . . . Total Orders . | . . . . Ally Attacks . | . . . . Total Damage . | . . . . Kills . | . . . . Allies Corrupted . | . . . . Allies Melted . | . . . . Intel | -11 -10 -9 -8 ------- Run | Yrd Mat Mat Mat Active Infowar (turns) 618 | . . 347 271 Optics 1 | . . . 1 Sensors 451 | . . 347 104 ECM 173 | . . . 173 Robot Analysis Total . | . . . . Derelict Logs Recovered . | . . . . Drone Launches . | . . . . Drone Recoveries . | . . . . Exploration | -11 -10 -9 -8 ------------- Run | Yrd Mat Mat Mat Turns Passed 2934 | 80 2143 362 349 Spaces Moved 1415 | 47 1041 244 83 Core 29 | 9 10 . 10 Treads 290 | 38 252 . . Legs 784 | . 779 5 . Wheels . | . . . . Hover 312 | . . 239 73 Flight . | . . . . Fastest Speed 50 | 50 120 112 108 Average Speed 167 | 138 177 113 215 Slowest Speed 500 | 160 250 190 500 Overloaded Moves . | . . . . Propulsion Burnouts . | . . . . Robots Hopped . | . . . . Potential Cave-ins . | . . . . Cave-ins Triggered 1 | . . . 1 Exploration Rate (%) 31 | 3 93 23 7 Regions Visited 3 Branch Regions . Pre-discovered Areas . | . . . . Known Exits Taken . | . . . . Unknown Exits Taken 3 | 1 1 1 . Scrap Searched . | . . . . Spaces Dug . | . . . . Terrain Destroyed 181 | . 112 36 33 Melee . | . . . . Projectile . | . . . . AOE 181 | . 112 36 33 Terrain Rammed . | . . . . Walls Destroyed . | . . . . Machines Disabled . | . . . . Actions | -11 -10 -9 -8 --------- Run | Yrd Mat Mat Mat Total 1753 | 62 1206 302 183 Wait 103 | . 21 33 49 Move 1412 | 46 1040 243 83 Hop . | . . . . Pick Up 42 | 12 23 4 3 Fast Attach 1 | . 1 . . Attach 27 | 4 9 2 12 Detach . | . . . . Swap 13 | . 6 6 1 Drop 9 | . 7 2 . Fire 127 | . 94 12 21 Melee . | . . . . Ram 15 | . 1 . 14 Kick . | . . . . Crush 4 | . 4 . . Escape Stasis . | . . . . Rewire . | . . . . Trap . | . . . . Miscellaneous . | . . . . Route ------- -11/Scrapyard -10/Materials (discovered 5 exits: *Mat x3 / [*Min] / [*Sub]) -9/Materials -8/Materials History --------- Turn | Location | Event 9 | -11/Scrapyard | Discovered new exit (range 15) 81 | -11/Scrapyard | Entered Materials 334 | -10/Materials | Build established: Mutant 449 | -10/Materials | Discovered new exit (range 7) 612 | -10/Materials | Lost 4 parts (2n2w) 886 | -10/Materials | Discovered new exit (range 16) 1208 | -10/Materials | Central database locked down 1208 | -10/Materials | Discovered new exit (range 7) 1419 | -10/Materials | Discovered new exit (range 15) 1695 | -10/Materials | Core integrity fell below 50% 1862 | -10/Materials | Core integrity fell below 20% 2016 | -10/Materials | Discovered new exit (range 15) 2224 | -10/Materials | Entered another Materials area 2224 | -9/Materials | Evolved 2 slots: Propulsion x1, Utility x1 2579 | -9/Materials | Discovered new exit (range 7) 2586 | -9/Materials | Entered another Materials area 2586 | -8/Materials | Evolved 2 slots: Propulsion x1, Utility x1 2695 | -8/Materials | Crushed by falling debris 2778 | -8/Materials | Lost 9 parts (1p4n3u1w) 2883 | -8/Materials | Core integrity fell below 50% 2912 | -8/Materials | Core integrity fell below 20% 2918 | -8/Materials | Lost 4 parts (1p1u2w) 2935 | -8/Materials | Destroyed by G-47 Trooper with Particle Gun Last Messages --------------- Plasma Cutter destroyed. Slammed into G-47 Trooper. Slammed into M-13 Machinist. Destabilizing: Core damaged (-16). ECM Suite destroyed. Slammed into G-47 Trooper. Imp. Targeting Computer broken. Destabilizing: Short circuit. Slammed into G-47 Trooper. System corrupted: Matter fused (-10). Acquired 3 matter. Slammed into G-47 Trooper. Destabilizing: System corrupted (+2). Slammed into G-47 Trooper. Critical hit (Burn: +37). Slammed into G-47 Trooper. Med. Matter Pod destroyed. Slammed into G-47 Trooper. Critical hit (Burn: +37). Slammed into G-47 Trooper. Map ----- +----------------------------------------------------+ | | | | | | | | | | | | | | | | | | | | | | | | | | | | | | | | | | | | | | | | | | | | | ?????????????????????????????????????????????????? | | ????????????????????########?????????????????????? | | ????????????????????# """g #?????????????????????? | | ????????????????????# """@ #?????????????????????? | | ????????????????????# """% #?????????????????????? | | ???????????#######??# % #?????????????????????? | | ?????????### #### #?????????????????????? | | ?????????# ! ## #?????????????????????? | | ????????## #####+####?????????????????????? | | #####???# ##??#%#????????????????????????? | | # #???## #??#%#????????????????????????? | | # #???## #??# #????????????????????????? | | # #???# % #??# #????????????????????????? | | # ###### # #### ##???????????????????????? | | # #???????????????????????? | | # % ????????????????? | | # "##### #?????????????? | | ############### ^ T#?????????#?????????????? | | ??????????????# " "#???????????????????????? | | ??????????????# """ #???????????????????????? | | ??????????????# ^ """ #???????????????????????? | | ??????????????# """ ! #???????????????????????? | | ??????????????# "" ""??????????????????????? | | ??????????????# """ ""??????????????????????? | | ??????????????# "" T"??????????????????????? | | ??????????????# "" ""??????????????????????? | | ??????????????T ? "???????????????????????? | | ??????????????# ? #???????????????????????? | +----------------------------------------------------+ Best States ------------- Heat Dissipation 31 Energy Generation 14 Energy Capacity 250 Matter Stores 495 Matter Capacity 500 Sight Range 16 Robot Scan Range 14 Terrain Scan Density 10 ECM Strength 1 Evasion (%) 55 Targeting Accuracy 6 Recoil Reduction 2 Item Schematics ----------------- None Robot Schematics ------------------ None Fabricated ------------ Nothing Repaired ---------- Nothing Alien Tech Used ----------------- None Achievements -------------- Loot Pinata Unlikely Earthworm Challenges ------------ None Game ------ Seed IonChainAutopenetrator Manual? 0 Play Time 00:25:27 Cumulative 3.5 hours Start 2025.06.05 @ 17:44:39 End 2025.06.05 @ 19:33:13 Sessions 3 Manual Loads 0 Difficulty Rogue Special Mode None Game No. 5 Rogue 5 Adventurer 0 Explorer 0 Win Type - Total 0 Types 0/0/0/0/0/0/0/0/0/0 Lore% 8 Gallery% 9 Achievement% 7 Wizard Run 0 Options --------- Layout 1 ASCII 0 Keyboard 0 Movement Arrows Keybinds 0 Fullscreen 1 Font 32/SmallcapsGlow Map View 50x35 Zoom Use 0% Tactical HUD 0 Map Filters NONE Filters NONE Steam 1 RUN: 9f72388c-489f-468d-87be-cd8755eedab8